[Event "51st La Roda Open 2025"]
[Site "La Roda"]
[Date "2025.04.15"]
[Round "1.1"]
[White "Pranav Vijay"]
[Black "Pastor Villalba, Arturo"]
[Result "1-0"]
[Annotator "RC"]
[ECO "C41"]
[WhiteElo "2252"]
[BlackElo "1907"]
[PlyCount "29"]
[EventDate "2025.04.15"]
[EventType "swiss"]
[EventCountry "ESP"]
[SourceTitle "playchess.com"]
[Source "ChessBase"]
[SourceQuality "1"]
[TimeControl "5400+30"]

1. e4 {[%emt 0:00:05]} d6 {[%emt 0:00:22]} 2. d4 {[%emt 0:00:09]} Nf6 {[%emt 0:00:25]} 3. Nc3 {[%emt 0:00:22]} e5 {[%emt 0:00:28]} 4. Nf3 {[%emt 0:00:07]} Nbd7 {[%emt 0:00:19]} 5. Bc4 {[%emt 0:00:08]} Be7 {[%emt 0:00:15]} 6. O-O {[%emt 0:00:08]} O-O {[%emt 0:00:15]} 7. Re1 {[%emt 0:00:12]} c6 {[%emt 0:00:29]} 8. a4 {[%emt 0:00:06]} a5 {[%emt 0:00:25]} 9. h3 {[%emt 0:01:31]} exd4 {[%emt 0:00:58]} 10. Nxd4 {[%emt 0:01:56]} Nc5 {[%emt 0:00:33]} 11. Qf3 {[%emt 0:05:11]} Be6 {[%emt 0:04:10]} 12. Ba2 {[%emt 0:08:14]} Nfd7 {[%emt 0:06:08]} 13. Be3 {[%emt 0:03:59]} Qb6 {[%emt 0:08:23]} 14. Qg3 {[%emt 0:22:38]} Rfe8 {[%emt 0:28:53]} 15. Nxe6 {[%emt 0:00:31]} 1-0

[Event "51st La Roda Open 2025"]
[Site "La Roda"]
[Date "2025.04.15"]
[Round "1.2"]
[White "Garcia-Ballesteros Banos, Juan A"]
[Black "Gumularz, Szymon"]
[Result "0-1"]
[Annotator "TA"]
[ECO "B15"]
[WhiteElo "1903"]
[BlackElo "2604"]
[PlyCount "94"]
[EventDate "2025.04.15"]
[EventType "swiss"]
[EventCountry "ESP"]
[SourceTitle "playchess.com"]
[Source "ChessBase"]
[SourceQuality "1"]
[TimeControl "5400+30"]

{[%evp 9,94,-2,6,-5,6,7,18,-11,-14,-5,-3,0,17,14,7,12,42,3,8,0,11,10,15,10,13,14,16,15,9,-33,-3,-6,-10,-14,-26,-9,-20,-10,-17,-22,-12,-138,-145,-135,-131,-117,-112,-387,-295,-765,-762,-864,-860,-817,-827,-718,-716,-698,-477,-954,-859,-801,-849,-831,-831,-792,-788,-799,-800,-996,-984,-957,-945,-875,-761,-1738,-1389,-4079,-2356,-29968,-5206,-29987,-29988,-29993,-29994,-29994,-5277]} 1. e4 {[%emt 0:00:05]} g6 {[%emt 0:00:11]} 2. d4 {[%emt 0:00:18]} Bg7 {[%emt 0:00:06]} 3. Nc3 {[%emt 0:00:24]} c6 {[%emt 0:00:07]} 4. f4 {[%emt 0:03:14]} d5 {[%emt 0:00:07]} 5. Nf3 {[%emt 0:02:51]} dxe4 {[%emt 0:00:55]} 6. Nxe4 {[%emt 0:00:15] B15: Caro-Kann: 3 Nc3: 3...g6 and 3...dxe4 4 Nxe4 Nf6 5 Nxf6+ exf6.} Nd7 {[%emt 0:03:51]} 7. Bd3 {[%emt 0:11:50]} Ngf6 {[%emt 0:01:07]} 8. c3 {[%emt 0:00:41] The position is equal.} Nxe4 {[%emt 0:00:40]} 9. Bxe4 {[%emt 0:00:06]} O-O {[%emt 0:00:04]} 10. Ne5 $146 {[%emt 0:16:29]} (10. Bc2 Nf6 11. Ne5 Bf5 12. Bxf5 gxf5 13. Be3 Qd5 14. O-O Ne4 15. Qh5 f6 16. Nf3 {½-½ Snape,I (2112)-Shephard,C (2203) ENG Chessable-ch Seniors 65+ 2022 (6)}) 10... Nf6 {[%emt 0:24:14]} 11. Bf3 {[%emt 0:02:09]} Be6 {[%emt 0:00:07][%cal Bc8e6,Be6d5,Bd5e4][%mdl 32]} 12. O-O {[%emt 0:01:07]} Bd5 {[%emt 0:00:07]} 13. Qc2 {[%emt 0:05:26]} e6 {[%emt 0:03:01]} 14. Be3 {[%emt 0:03:08]} Rc8 {[%emt 0:05:17]} 15. a4 {[%emt 0:07:05]} Qc7 {[%emt 0:01:09]} 16. a5 {[%emt 0:06:32]} Rfd8 {[%emt 0:00:16]} 17. Be2 {[%emt 0:05:48]} Be4 {[%emt 0:13:36]} 18. Qc1 {[%emt 0:06:33]} Nd5 {[%emt 0:04:18][%cal Oc6c5,Bf6d5,Bd5e7,Be7f5][%mdl 32]} 19. c4 {[%emt 0:03:11]} Ne7 {[%emt 0:00:13]} 20. Bf2 {[%emt 0:02:43]} Nf5 {[%emt 0:01:21] Inhibits Qe3.} 21. Qc3 {[%emt 0:04:25]} c5 {[%emt 0:11:13]} (21... f6 {simplifies} 22. Nd3 Qd6 23. Bg4 Bxd3 24. Qxd3 Qxf4 25. Bxf5 gxf5 26. Qb3 Qc7) 22. dxc5 {[%emt 0:01:22]} g5 {[%emt 0:00:06]} 23. g3 {[%emt 0:02:34]} gxf4 {[%emt 0:00:19]} 24. gxf4 {[%emt 0:00:08]} Kh8 {[%emt 0:00:30]} 25. Bh5 {[%emt 0:01:54]} (25. b4 $11) 25... Rg8 $17 {[%emt 0:15:07]} 26. Bg3 {[%emt 0:04:13]} Qxc5+ $40 {[%emt 0:01:08][%mdl 128] Black attacks with force.} 27. Rf2 {[%emt 0:00:15]} Bxe5 {[%emt 0:00:14]} 28. fxe5 {[%emt 0:03:39][%mdl 8192] White does not recover from this.} (28. Qxe5+ $17 Rg7 (28... Qxe5 29. fxe5 Nxg3 30. hxg3 $19) 29. Rd1) 28... Rg7 {[%emt 0:00:12][%cal Og7g5]} (28... Qxc4 29. Qxc4 Rxc4 30. Bxf7 $14) 29. Re1 $2 {[%emt 0:03:09] [#]} (29. Ra3) 29... Rcg8 $1 $19 {[%emt 0:00:16]} 30. Kf1 {[%emt 0:01:34]} (30. Rxe4 Nxg3) 30... Rxg3 {[%emt 0:02:05]} 31. hxg3 {[%emt 0:01:04]} Nxg3+ {[%emt 0:00:37]} 32. Qxg3 {[%emt 0:00:14]} Rxg3 {[%emt 0:00:08]} 33. Rxe4 {[%emt 0:00:10]} Qxa5 {[%emt 0:01:55]} 34. Rxf7 {[%emt 0:01:11]} (34. Bxf7 $142 Qa1+ 35. Re1) 34... Qa1+ {[%emt 0:00:10]} 35. Re1 {[%emt 0:01:11] [#]} Rg1+ $3 {[%emt 0:00:43][%mdl 512]} 36. Kxg1 {[%emt 0:00:01]} Qxe1+ {[%emt 0:00:04][%mdl 4096] Endgame KQ-KRB} 37. Kg2 {[%emt 0:00:23]} Qxe5 {[%emt 0:00:06]} 38. Bf3 {[%emt 0:00:48]} Qxb2+ {[%emt 0:00:08]} 39. Kg3 {[%emt 0:00:42]} Qe5+ {[%emt 0:00:20]} 40. Kf2 {[%emt 0:00:37]} Qd4+ {[%emt 0:00:05]} 41. Kg3 {[%emt 0:00:16]} Qxc4 {[%emt 0:00:15]} 42. Rxb7 {[%emt 0:00:30]} a5 {[%emt 0:00:08] and ...a4 should not be overlooked} 43. Bg4 {[%emt 0:00:42]} a4 {[%emt 0:00:23]} 44. Kh4 {[%emt 0:00:29]} a3 {[%emt 0:00:09]} (44... h5 $142 45. Kxh5 Qd5+ 46. Kg6 Qxb7 47. Bxe6 Qf3 48. Bf7 a3 (48... Qxf7+ 49. Kxf7 a3 50. Ke6 a2 51. Kd5 a1=Q 52. Kc4 Kg7 53. Kd3 Qd1+ 54. Kc4 Kf6 55. Kc5 Ke6 56. Kc4 Kd6 57. Kb4 Qd3 58. Ka5 Kc5 59. Ka4 Qh3 60. Ka5 Qa3#) 49. Be6 Qf2 (49... Qe4+ $2 50. Kf6 $19) (49... a2 50. Bxa2 Qg2+ 51. Kh6 Qxa2 52. Kg5 Qd2+ 53. Kg4 Qe3 54. Kh4 Kh7 55. Kh5 Qg1 56. Kh4 Kg6 57. Kh3 Kf5 58. Kh4 Qh2#) 50. Bd5 a2 51. Bxa2 Qxa2 52. Kg5 Qd2+ 53. Kg4 Qe3 54. Kh4 Kh7 55. Kh5 Qg1 56. Kh4 Kg6 57. Kh3 Kf5 58. Kh4 Qh2#) 45. Kg5 {[%emt 0:00:55]} Qd5+ {[%emt 0:00:05] Black mates.} 46. Kh6 {[%emt 0:00:30]} Qxb7 {[%emt 0:00:11]} 47. Bxe6 {[%emt 0:00:27]} Qg7+ {[%emt 0:00:20] Weighted Error Value: White=1.28/Black=0.38  Loses game:     	White=1     	---        Mistake:       	White=2     	---        Inaccurate:     	White=3     	Black=2      OK:         	White=7     	Black=8      Best:        	White=3     	Black=2} (47... Qe7 $142 48. Kh5 Qxe6 49. Kg5 a2 50. Kh5 a1=Q (50... a1=B {leads to mate.} 51. Kh4 Be5 52. Kg5 Bg3 53. Kh5 Qg6#) 51. Kh4 Qg6 52. Kh3 Qh1#) 0-1

[Event "51st La Roda Open 2025"]
[Site "La Roda"]
[Date "2025.04.15"]
[Round "1.3"]
[White "Albornoz Cabrera, Carlos Daniel"]
[Black "Moraes, Antonio Jose Oliveir"]
[Result "1-0"]
[Annotator "TA"]
[ECO "B12"]
[WhiteElo "2561"]
[BlackElo "1903"]
[PlyCount "35"]
[EventDate "2025.04.15"]
[EventType "swiss"]
[EventCountry "ESP"]
[SourceTitle "playchess.com"]
[Source "ChessBase"]
[SourceQuality "1"]
[TimeControl "5400+30"]

{[%evp 9,34,20,16,48,47,8,4,16,15,16,74,75,82,75,79,79,439,464,986,1014,1066,1032,957,743,1011,832,29999]} 1. e4 {[%emt 0:00:04]} c6 {[%emt 0:00:12]} 2. d4 {[%emt 0:00:05]} d5 {[%emt 0:00:04]} 3. e5 {[%emt 0:00:03]} c5 {[%emt 0:00:04]} 4. dxc5 {[%emt 0:00:03]} e6 {[%emt 0:00:04]} 5. Bd3 {[%emt 0:00:04]} Bxc5 {[%emt 0:00:27]} 6. Qg4 {[%emt 0:00:07]} Ne7 {[%emt 0:00:37]} 7. b4 {[%emt 0:00:15]} Bb6 {[%emt 0:00:27]} 8. Nf3 {[%emt 0:00:04][%cal Bg1f3,Bf3e5,Be5c6][%mdl 32] The position is equal.} Ng6 {[%emt 0:04:52]} 9. h4 {[%emt 0:01:51][%cal Bh2h4,Bh4h5][%mdl 32] h5 would now be deadly.} Nc6 {[%emt 0:04:57] [#]} (9... Qc7 $11 {remains equal.}) 10. h5 $1 $16 {[%emt 0:24:57]} Ngxe5 {[%emt 0:17:42]} 11. Nxe5 {[%emt 0:00:06]} Qf6 {[%emt 0:02:56]} (11... Nxe5 12. Qxg7 Nxd3+ 13. cxd3 $18) 12. Nxc6 {[%emt 0:00:48]} Qxa1 {[%emt 0:04:04][%mdl 8192] [#] This costs Black the game.} (12... bxc6 $16 {is a better chance.} 13. c3 Bxf2+ 14. Kd1 e5) 13. c3 $1 $18 {[%emt 0:00:04]} Qxa2 {[%emt 0:16:59]} ({Much worse is} 13... bxc6 14. Qxg7) (13... Rg8 $142 14. Ne5 (14. Bxh7 bxc6 15. O-O Ba6 $16) 14... Bc7) 14. Qxg7 {[%emt 0:03:10]} bxc6 {[%emt 0:09:03]} 15. Qxh8+ {[%emt 0:00:09]} Kd7 {[%emt 0:00:07]} 16. Qf6 {[%emt 0:00:34]} (16. Bxh7 $2 {too greedy.} Ba6 17. Qe5 f6 $19) 16... Ke8 {[%emt 0:00:54]} 17. Bg5 {[%emt 0:00:30][%csl Gg5][%cal Rf6e7]} Qc2 {[%emt 0:02:31]} 18. Qe7# {[%emt 1:06:36] Weighted Error Value: White=0.11 (very precise) /Black=1.04.  Loses game:     	---       	Black=1      Mistake:       	---       	Black=2      Inaccurate:     	White=1     	---        OK:         	White=3     	Black=5      Best:        	White=1     	---        Strong:       	White=2     	---} 1-0

[Event "51st La Roda Open 2025"]
[Site "La Roda"]
[Date "2025.04.15"]
[Round "1.4"]
[White "Fuentes de Nova, Sebastian"]
[Black "Fier, Alexandr"]
[Result "0-1"]
[Annotator "TA"]
[ECO "A76"]
[WhiteElo "1902"]
[BlackElo "2534"]
[PlyCount "50"]
[EventDate "2025.04.15"]
[EventType "swiss"]
[EventCountry "ESP"]
[SourceTitle "playchess.com"]
[Source "ChessBase"]
[SourceQuality "1"]
[TimeControl "5400+30"]

{[%evp 26,50,0,-11,11,-32,-13,-58,-56,-60,-72,-129,-132,-178,-179,-290,-281,-400,-400,-391,-381,-525,-521,-522,-377,-487,-478]} 1. d4 {[%emt 0:00:42]} Nf6 {[%emt 0:00:12]} 2. c4 {[%emt 0:00:57]} c5 {[%emt 0:00:06]} 3. d5 {[%emt 0:00:32]} e6 {[%emt 0:00:05]} 4. Nc3 {[%emt 0:00:56]} exd5 {[%emt 0:00:06]} 5. cxd5 {[%emt 0:00:13]} d6 {[%emt 0:00:06]} 6. e4 {[%emt 0:01:19]} g6 {[%emt 0:00:33]} 7. Nf3 {[%emt 0:05:11]} Bg7 {[%emt 0:00:39]} 8. Be2 {[%emt 0:05:16]} O-O {[%emt 0:00:08]} 9. O-O {[%emt 0:02:24]} Re8 {[%emt 0:00:05]} 10. Qc2 {[%emt 0:02:27]} Bg4 {[%emt 0:00:22]} 11. Bg5 {[%emt 0:02:18]} Nbd7 {[%emt 0:00:40]} 12. h3 {[%emt 0:01:34]} Bxf3 {[%emt 0:00:05]} 13. Bxf3 {[%emt 0:00:18]} a6 {[%emt 0:01:47]} 14. a4 {[%emt 0:05:57]} Rc8 {[%emt 0:00:42]} 15. Rfe1 {[%emt 0:07:51]} c4 {[%emt 0:00:31]} 16. Be3 {[%emt 0:00:54]} Nc5 {[%emt 0:00:27] Black is slightly better.} 17. Bxc5 {[%emt 0:02:06]} Rxc5 {[%emt 0:00:09]} 18. Ne2 {[%emt 0:07:31]} ({White should play} 18. Qd2) 18... Nd7 $17 {[%emt 0:01:55]} 19. Rad1 {[%emt 0:06:11] [#]} (19. Ng3 $17) 19... Ne5 $1 $19 {[%emt 0:00:06]} 20. Nd4 {[%emt 0:01:24]} (20. b4 {keeps fighting.} Rc7 21. Ng3) 20... Nd3 {[%emt 0:00:08]} 21. Rxd3 {[%emt 0:00:59]} (21. Ne2 $142) 21... cxd3 {[%emt 0:00:07]} 22. Qxd3 {[%emt 0:00:20]} Rxd5 {[%emt 0:00:13]} 23. exd5 {[%emt 0:00:41] [#] Strongly threatening Rb1.} Rxe1+ {[%emt 0:00:05]} 24. Kh2 {[%emt 0:00:13]} Be5+ {[%emt 0:00:56]} 25. g3 {[%emt 0:00:17]} Qb6 {[%emt 0:00:05][%csl LRb2,LRd4] Black took control after the opening.   Weighted Error Value: White=0.63/Black=0.29 (precise) .  Mistake:       	White=4     	---        Inaccurate:     	White=3     	---        OK:         	White=1     	Black=7      Best:        	White=1     	Black=1} 0-1

[Event "51st La Roda Open 2025"]
[Site "La Roda"]
[Date "2025.04.15"]
[Round "1.5"]
[White "Suleymenov, Alisher"]
[Black "Rubio Sureda, Alejandro"]
[Result "1-0"]
[Annotator "RC"]
[ECO "B12"]
[WhiteElo "2478"]
[BlackElo "1891"]
[PlyCount "87"]
[EventDate "2025.04.15"]
[EventType "swiss"]
[EventCountry "ESP"]
[SourceTitle "playchess.com"]
[Source "ChessBase"]
[SourceQuality "1"]
[TimeControl "5400+30"]

1. e4 {[%emt 0:00:04]} c6 {[%emt 0:00:28]} 2. d4 {[%emt 0:00:07]} d5 {[%emt 0:00:10]} 3. e5 {[%emt 0:00:07]} c5 {[%emt 0:02:01]} 4. dxc5 {[%emt 0:00:07]} e6 {[%emt 0:00:04]} 5. a3 {[%emt 0:00:12]} Bxc5 {[%emt 0:00:38]} 6. Qg4 {[%emt 0:00:08]} Ne7 {[%emt 0:00:45]} 7. Bd3 {[%emt 0:00:31]} Qb6 {[%emt 0:06:38]} 8. Nf3 {[%emt 0:05:55]} Bxf2+ {[%emt 0:09:31]} 9. Ke2 {[%emt 0:01:54]} Nbc6 {[%emt 0:11:43]} 10. Nc3 {[%emt 0:03:34]} Nd4+ {[%emt 0:08:47]} 11. Kf1 {[%emt 0:03:53]} Bd7 {[%emt 0:11:51]} 12. Qxg7 {[%emt 0:07:00]} O-O-O {[%emt 0:11:17]} 13. Qf6 {[%emt 0:09:14]} Nef5 {[%emt 0:20:23]} 14. Nxd5 {[%emt 0:06:19]} Qc5 {[%emt 0:04:38]} 15. b4 {[%emt 0:00:30]} Qxd5 {[%emt 0:01:34]} 16. c4 {[%emt 0:00:05]} Qc6 {[%emt 0:04:07]} 17. Kxf2 {[%emt 0:00:04]} Rhg8 {[%emt 0:02:59]} 18. Bg5 {[%emt 0:00:55]} h6 {[%emt 0:00:55]} 19. Nxd4 {[%emt 0:00:34]} Nxd4 {[%emt 0:00:30]} 20. Qxh6 {[%emt 0:00:11]} Be8 {[%emt 0:00:59]} 21. Qf6 {[%emt 0:03:13]} Rd7 {[%emt 0:00:28]} 22. h4 {[%emt 0:06:59]} Nf5 {[%emt 0:00:26]} 23. Rad1 {[%emt 0:03:06]} a6 {[%emt 0:00:36]} 24. Bxf5 {[%emt 0:00:35]} exf5 {[%emt 0:00:17]} 25. Qxc6+ {[%emt 0:00:07]} bxc6 {[%emt 0:00:02]} 26. Rxd7 {[%emt 0:03:25]} Bxd7 {[%emt 0:00:36]} 27. Bf6 {[%emt 0:00:06]} Rg6 {[%emt 0:00:29]} 28. h5 {[%emt 0:00:04]} Rh6 {[%emt 0:00:07]} 29. Bg7 {[%emt 0:00:05]} Rh7 {[%emt 0:00:08]} 30. h6 {[%emt 0:00:02]} Be6 {[%emt 0:00:08]} 31. Rc1 {[%emt 0:00:16]} Kc7 {[%emt 0:00:15]} 32. Ke3 {[%emt 0:00:40]} Kb6 {[%emt 0:00:33]} 33. Kd4 {[%emt 0:00:05]} Bd7 {[%emt 0:00:20]} 34. Rb1 {[%emt 0:00:27]} Be6 {[%emt 0:00:56]} 35. a4 {[%emt 0:00:23]} Bd7 {[%emt 0:02:03]} 36. a5+ {[%emt 0:00:13]} Kc7 {[%emt 0:00:35]} 37. Kc5 {[%emt 0:00:01]} Be8 {[%emt 0:00:07]} 38. Rd1 {[%emt 0:00:03]} Bd7 {[%emt 0:00:16]} 39. Rd6 {[%emt 0:00:06]} Be8 {[%emt 0:00:07]} 40. Rf6 {[%emt 0:00:04]} Bd7 {[%emt 0:00:43]} 41. Rxf7 {[%emt 0:00:05]} Kc8 {[%emt 0:00:06]} 42. Kd6 {[%emt 0:00:06]} Be8 {[%emt 0:00:15]} 43. Rf8 {[%emt 0:00:05]} Kd8 {[%emt 0:00:08]} 44. e6 {[%emt 0:00:06]} 1-0

[Event "51st La Roda Open 2025"]
[Site "La Roda"]
[Date "2025.04.15"]
[Round "1.6"]
[White "Herrero Pena, Laura"]
[Black "Lopez Martinez, Josep Manuel"]
[Result "0-1"]
[Annotator "RC"]
[ECO "B12"]
[WhiteElo "1886"]
[BlackElo "2460"]
[PlyCount "162"]
[EventDate "2025.04.15"]
[EventType "swiss"]
[EventCountry "ESP"]
[SourceTitle "playchess.com"]
[Source "ChessBase"]
[SourceQuality "1"]
[TimeControl "5400+30"]

1. e4 {[%emt 0:00:04]} c6 {[%emt 0:00:14]} 2. d4 {[%emt 0:00:09]} d5 {[%emt 0:00:13]} 3. e5 {[%emt 0:00:14]} Bf5 {[%emt 0:00:54]} 4. Nd2 {[%emt 0:00:28]} e6 {[%emt 0:01:38]} 5. Nb3 {[%emt 0:00:26]} Nd7 {[%emt 0:00:51]} 6. Nf3 {[%emt 0:00:46]} a6 {[%emt 0:08:43]} 7. Be2 {[%emt 0:03:04]} c5 {[%emt 0:00:30]} 8. c3 {[%emt 0:01:22]} c4 {[%emt 0:00:28]} 9. Nbd2 {[%emt 0:00:45]} f6 {[%emt 0:03:47]} 10. O-O {[%emt 0:02:08]} Qc7 {[%emt 0:00:17]} 11. Re1 {[%emt 0:02:40]} fxe5 {[%emt 0:00:27]} 12. Nxe5 {[%emt 0:03:58]} Nxe5 {[%emt 0:00:09]} 13. dxe5 {[%emt 0:00:13]} Bc5 {[%emt 0:00:12]} 14. Nf3 {[%emt 0:02:13]} Ne7 {[%emt 0:00:14]} 15. Nd4 {[%emt 0:01:23]} O-O {[%emt 0:00:19]} 16. Bg4 {[%emt 0:04:05]} Bxd4 {[%emt 0:02:29]} 17. cxd4 {[%emt 0:00:16]} Bxg4 {[%emt 0:00:24]} 18. Qxg4 {[%emt 0:00:11]} Nf5 {[%emt 0:00:08]} 19. b3 {[%emt 0:05:21]} cxb3 {[%emt 0:03:14]} 20. axb3 {[%emt 0:01:22]} Qc3 {[%emt 0:00:40]} 21. Ba3 {[%emt 0:02:25]} Rf7 {[%emt 0:00:27]} 22. Bc5 {[%emt 0:06:57]} Qxb3 {[%emt 0:02:09]} 23. Rab1 {[%emt 0:02:05]} Qa4 {[%emt 0:05:56]} 24. Rb6 {[%emt 0:03:01]} Rc8 {[%emt 0:00:50]} 25. Qd1 {[%emt 0:04:33]} Qd7 {[%emt 0:01:39]} 26. Qb3 {[%emt 0:02:37]} Rc6 {[%emt 0:00:15]} 27. Rb1 {[%emt 0:01:18]} Rxb6 {[%emt 0:00:16]} 28. Qxb6 {[%emt 0:00:19]} h5 {[%emt 0:01:05]} 29. h3 {[%emt 0:02:21]} g5 {[%emt 0:04:12]} 30. g3 {[%emt 0:13:08]} g4 {[%emt 0:01:49]} 31. h4 {[%emt 0:00:27]} Ng7 {[%emt 0:04:42]} 32. Qa5 {[%emt 0:05:45]} Rf3 {[%emt 0:07:09]} 33. Rb2 {[%emt 0:04:22]} Kh7 {[%emt 0:05:43]} 34. Rb6 {[%emt 0:03:04]} Rf7 {[%emt 0:06:02]} 35. Qb4 {[%emt 0:02:18]} Qc8 {[%emt 0:00:49]} 36. Qb1+ {[%emt 0:01:10]} Kg8 {[%emt 0:00:08]} 37. Qb4 {[%emt 0:03:49]} Rc7 {[%emt 0:02:01]} 38. Kg2 {[%emt 0:05:18]} Nf5 {[%emt 0:03:49]} 39. Qd2 {[%emt 0:02:23]} Rg7 {[%emt 0:00:07]} 40. Qb2 {[%emt 0:01:23]} Qd7 {[%emt 0:00:26]} 41. Qb4 {[%emt 0:00:44]} Qf7 {[%emt 0:00:36]} 42. Qb3 {[%emt 0:01:43]} Kh8 {[%emt 0:06:38]} 43. Kf1 {[%emt 0:02:18]} Qd7 {[%emt 0:05:14]} 44. Kg1 {[%emt 0:02:19]} Qc8 {[%emt 0:00:19]} 45. Qb4 {[%emt 0:00:37]} Rc7 {[%emt 0:01:09]} 46. Kg2 {[%emt 0:00:45]} Kg8 {[%emt 0:05:40]} 47. Kh2 {[%emt 0:01:54]} Qd7 {[%emt 0:04:15]} 48. Qb3 {[%emt 0:00:40]} Qf7 {[%emt 0:01:16]} 49. Kg2 {[%emt 0:00:19]} Ng7 {[%emt 0:00:33]} 50. Kg1 {[%emt 0:01:50]} Rd7 {[%emt 0:01:23]} 51. Bd6 {[%emt 0:01:43]} Qf3 {[%emt 0:01:55]} 52. Rxb7 {[%emt 0:00:45]} Rxb7 {[%emt 0:00:05]} 53. Qxb7 {[%emt 0:00:09]} Qd1+ {[%emt 0:00:04]} 54. Kg2 {[%emt 0:00:11]} Qxd4 {[%emt 0:00:05]} 55. Qxa6 {[%emt 0:00:29]} Qe4+ {[%emt 0:00:09]} 56. Kg1 {[%emt 0:00:11]} Qb1+ {[%emt 0:06:38]} 57. Kg2 {[%emt 0:00:19]} Qg6 {[%emt 0:00:13]} 58. Qc8+ {[%emt 0:00:57]} Qe8 {[%emt 0:00:09]} 59. Qxe8+ {[%emt 0:00:48]} Nxe8 {[%emt 0:00:02]} 60. Bc5 {[%emt 0:00:24]} Kf7 {[%emt 0:00:24]} 61. f3 {[%emt 0:00:40]} Kg6 {[%emt 0:00:03]} 62. fxg4 {[%emt 0:00:25]} hxg4 {[%emt 0:00:05]} 63. Kf2 {[%emt 0:00:27]} Kf5 {[%emt 0:00:04]} 64. Bd4 {[%emt 0:00:57]} Ng7 {[%emt 0:00:19]} 65. Ke3 {[%emt 0:00:51]} Nh5 {[%emt 0:00:07]} 66. Kf2 {[%emt 0:00:21]} Ke4 {[%emt 0:00:05]} 67. Bb2 {[%emt 0:00:14]} d4 {[%emt 0:00:16]} 68. Bc1 {[%emt 0:00:32]} Kxe5 {[%emt 0:00:09]} 69. Bd2 {[%emt 0:00:23]} Ke4 {[%emt 0:00:12]} 70. Be1 {[%emt 0:00:14]} Kd3 {[%emt 0:00:16]} 71. Kf1 {[%emt 0:00:09]} e5 {[%emt 0:00:10]} 72. Bf2 {[%emt 0:00:11]} e4 {[%emt 0:00:08]} 73. Be1 {[%emt 0:00:14]} e3 {[%emt 0:00:11]} 74. Kg2 {[%emt 0:00:09]} Ke2 {[%emt 0:00:12]} 75. Bb4 {[%emt 0:00:09]} d3 {[%emt 0:00:09]} 76. Bc3 {[%emt 0:00:14]} d2 {[%emt 0:00:11]} 77. Bxd2 {[%emt 0:00:06]} exd2 {[%emt 0:00:07]} 78. Kg1 {[%emt 0:00:08]} d1=Q+ {[%emt 0:00:43]} 79. Kg2 {[%emt 0:00:09]} Qf1+ {[%emt 0:00:22]} 80. Kh2 {[%emt 0:00:06]} Qf2+ {[%emt 0:00:07]} 81. Kh1 {[%emt 0:00:04]} Nxg3# {[%emt 0:00:08]} 0-1

[Event "51st La Roda Open 2025"]
[Site "La Roda"]
[Date "2025.04.15"]
[Round "1.7"]
[White "Kanov, Nikola"]
[Black "Bibilashvili, Lali"]
[Result "1-0"]
[Annotator "RC"]
[ECO "B06"]
[WhiteElo "2413"]
[BlackElo "1883"]
[PlyCount "59"]
[EventDate "2025.04.15"]
[EventType "swiss"]
[EventCountry "ESP"]
[SourceTitle "playchess.com"]
[Source "ChessBase"]
[SourceQuality "1"]
[TimeControl "5400+30"]

1. e4 {[%emt 0:00:03]} g6 {[%emt 0:00:15]} 2. d4 {[%emt 0:00:18]} Bg7 {[%emt 0:00:18]} 3. Nc3 {[%emt 0:00:28]} e6 {[%emt 0:03:31]} 4. h4 {[%emt 0:04:04]} h5 {[%emt 0:01:55]} 5. Bg5 {[%emt 0:06:01]} Bf6 {[%emt 0:03:16]} 6. Qd2 {[%emt 0:01:18]} Bxg5 {[%emt 0:00:42]} 7. hxg5 {[%emt 0:00:17]} d6 {[%emt 0:05:21]} 8. O-O-O {[%emt 0:03:33]} Nd7 {[%emt 0:06:08]} 9. f4 {[%emt 0:00:51]} Ne7 {[%emt 0:01:51]} 10. g4 {[%emt 0:01:21]} c6 {[%emt 0:08:14]} 11. Be2 {[%emt 0:04:39]} h4 {[%emt 0:03:49]} 12. Nf3 {[%emt 0:04:08]} h3 {[%emt 0:03:23]} 13. d5 {[%emt 0:03:27]} Nc5 {[%emt 0:14:34]} 14. dxc6 {[%emt 0:03:40]} bxc6 {[%emt 0:03:40]} 15. Qxd6 {[%emt 0:00:37]} Qb6 {[%emt 0:00:50]} 16. Ne5 {[%emt 0:01:11]} Nb7 {[%emt 0:08:59]} 17. Qd3 {[%emt 0:01:00]} h2 {[%emt 0:02:34]} 18. Qg3 {[%emt 0:02:47]} Rb8 {[%emt 0:03:58]} 19. Nc4 {[%emt 0:00:36]} Qc7 {[%emt 0:02:04]} 20. Rxh2 {[%emt 0:00:19]} Rf8 {[%emt 0:00:33]} 21. Rdh1 {[%emt 0:02:00]} a5 {[%emt 0:06:20]} 22. Rh8 {[%emt 0:00:21]} Ng8 {[%emt 0:00:07]} 23. e5 {[%emt 0:01:34]} Bd7 {[%emt 0:01:34]} 24. Ne4 {[%emt 0:00:21]} a4 {[%emt 0:01:25]} 25. Rd1 {[%emt 0:01:49]} Rd8 {[%emt 0:10:17]} 26. Ncd6+ {[%emt 0:02:06]} Nxd6 {[%emt 0:04:44]} 27. exd6 {[%emt 0:00:06]} Qb6 {[%emt 0:00:31]} 28. Rxg8 {[%emt 0:00:39]} Rxg8 {[%emt 0:01:03]} 29. Nf6+ {[%emt 0:00:10]} Kf8 {[%emt 0:00:03]} 30. Qh3 {[%emt 0:00:23]} 1-0